bitfinex/quotes_BTCUSD_20250118
["timestamp","ask_amount","ask_price","bid_price","bid_amount"]
[1737172933214,0.08195223,103570.0,103560.0,0.096562]
[1737172933416,0.27414458,103570.0,103560.0,0.096562]
[1737172933620,0.17759158,103570.0,103560.0,0.096562]
[1737172934370,0.27414458,103570.0,103560.0,0.096562]
[1737172934846,0.29714458,103570.0,103560.0,0.096562]
[1737172935079,0.68336058,103570.0,103550.0,0.58206581]
[1737172935309,0.68336058,103570.0,103550.0,0.38893481]
[1737172935310,0.09563935,103560.0,103550.0,0.38893481]
[1737172937327,0.17759158,103570.0,103560.0,0.096562]
[1737172937582,0.27414458,103570.0,103560.0,0.096562]
[1737172937785,0.17759158,103570.0,103560.0,0.096562]
[1737172938199,0.27414458,103570.0,103560.0,0.096562]
[1737172938416,0.17759158,103570.0,103560.0,0.096562]
[1737172938825,0.27414458,103570.0,103560.0,0.096562]
[1737172939030,0.17759158,103570.0,103560.0,0.096562]
[1737172939614,0.27414458,103570.0,103560.0,0.096562]
[1737172940158,0.39370858,103570.0,103550.0,0.19580881]
[1737172940347,0.09563935,103560.0,103550.0,0.38894881]
[1737172940994,0.19220135,103560.0,103550.0,0.38894881]
[1737172941196,0.19220135,103560.0,103550.0,0.19580881]
[1737172942362,0.19220135,103560.0,103540.0,0.632876]
[1737172942363,0.57966838,103560.0,103540.0,0.632876]
[1737172942564,0.17073935,103550.0,103540.0,0.53896681]
[1737172943204,0.0751,103550.0,103540.0,0.53896681]
[1737172943403,0.31650235,103560.0,103550.0,0.096571]
[1737172944563,0.096571,103550.0,103540.0,0.09924081]
[1737172944766,0.0751,103540.0,103530.0,0.5058035]
[1737172944969,0.17073935,103540.0,103530.0,0.60504431]
[1737172945309,0.17073935,103540.0,103530.0,0.62541341]
[1737172945860,0.0751,103540.0,103530.0,0.62541341]
[1737172946058,0.17073935,103540.0,103530.0,0.47541341]
[1737172946275,0.0751,103540.0,103530.0,0.47541341]
[1737172946474,0.46046335,103550.0,103530.0,0.38899281]
[1737172946707,0.46046335,103550.0,103530.0,0.58217081]
[1737172946916,0.46045335,103550.0,103530.0,0.58217081]
[1737172947094,0.26731035,103550.0,103540.0,0.096581]
[1737172948944,0.46045535,103550.0,103530.0,0.58215981]
[1737172949486,0.46045535,103550.0,103540.0,0.096581]
[1737172949834,0.65360035,103550.0,103530.0,0.58216281]
[1737172950044,0.46045535,103550.0,103540.0,0.096581]
[1737172950288,0.46045535,103550.0,103540.0,0.0970083]
[1737172951050,0.26731035,103550.0,103540.0,0.0970083]
[1737172955163,0.0751,103550.0,103540.0,0.19624911]
[1737172956574,0.24140135,103560.0,103550.0,0.096571]
[1737172958470,0.43452835,103560.0,103540.0,0.58253311]
[1737172958874,0.43452835,103560.0,103540.0,0.6125919]
[1737172959232,0.09563935,103550.0,103540.0,0.4194459]
[1737172959643,0.09563935,103550.0,103540.0,0.38938711]
[1737172959845,0.19221035,103550.0,103540.0,0.09966811]
[1737172960161,0.27341035,103550.0,103540.0,0.19624911]
[1737172965303,0.27341035,103550.0,103540.0,0.22634084]
[1737172965723,0.29641035,103550.0,103540.0,0.0004273]
[1737172967101,0.69155116,103550.0,103540.0,0.0004273]
[1737172967602,0.59155116,103550.0,103540.0,0.0004273]
[1737172968394,0.50173376,103550.0,103540.0,0.0004273]
[1737172974342,0.35173376,103550.0,103540.0,0.0004273]
[1737172974541,0.34231035,103550.0,103540.0,0.0004273]
[1737172993454,0.34231035,103550.0,103520.0,0.386396]
[1737172993455,0.216164,103540.0,103520.0,0.386396]
[1737172993657,0.40838935,103540.0,103520.0,0.58222981]
[1737172994607,0.31275,103540.0,103520.0,0.48563681]
[1737172994779,0.31275,103540.0,103530.0,0.09659]
[1737172995000,0.40838935,103540.0,103530.0,0.09659]
[1737172995158,0.40838735,103540.0,103520.0,0.58221981]
[1737172995369,0.40838735,103540.0,103520.0,0.61232482]
[1737172995574,0.40838735,103540.0,103520.0,0.58221981]
[1737172996445,0.40838735,103540.0,103520.0,0.6123241]
[1737172997011,0.40838735,103540.0,103530.0,0.09659]
[1737172997732,0.60154935,103540.0,103520.0,0.58220881]
[1737172997955,0.60154935,103540.0,103520.0,0.61232755]
[1737172998385,0.40838735,103540.0,103520.0,0.61232755]
[1737172999093,0.40838735,103540.0,103530.0,0.09659]
[1737172999288,0.21522535,103540.0,103530.0,0.09659]
[1737172999465,0.16659101,103540.0,103530.0,0.09659]
[1737173000929,0.289729,103550.0,103540.0,0.096581]
[1737173001138,0.35973401,103550.0,103540.0,0.096581]
[1737173001515,0.35973401,103550.0,103530.0,0.66506681]
[1737173001723,0.09401002,103540.0,103530.0,0.50203231]
[1737173002294,0.19059102,103540.0,103530.0,0.41913231]
[1737173002499,0.19059102,103540.0,103530.0,0.38899081]
[1737173002699,0.09401002,103540.0,103530.0,0.41913298]
[1737173003139,0.09401002,103540.0,103530.0,0.38899081]
[1737173003560,0.19059102,103540.0,103530.0,0.41913414]
[1737173003960,0.19059102,103540.0,103530.0,0.22596614]
[1737173004176,0.19179832,103540.0,103530.0,0.03014333]
[1737173004380,0.48155532,103540.0,103520.0,0.5058295]
[1737173004722,0.04700501,103530.0,103520.0,0.63521471]
[1737173005451,0.19180744,103530.0,103520.0,0.116565]
[1737173005686,0.14480243,103530.0,103520.0,0.116565]
[1737173005914,0.14485315,103530.0,103520.0,0.116565]
[1737173006120,0.19185816,103530.0,103520.0,0.116565]
[1737173006745,0.38504316,103530.0,103510.0,1.08791334]
[1737173006916,0.09401002,103520.0,103510.0,1.17409103]
[1737173007319,0.09401002,103520.0,103510.0,1.20409103]
[1737173007724,0.09401002,103520.0,103510.0,0.81524419]
[1737173008858,0.04700501,103520.0,103510.0,0.81524419]
[1737173009720,0.04700501,103520.0,103510.0,0.98808539]
[1737173010765,0.04700501,103520.0,103510.0,1.20409103]
[1737173011753,0.21360902,103520.0,103510.0,0.44903658]
[1737173011970,0.21481655,103520.0,103510.0,0.44903658]
[1737173012205,0.21360902,103520.0,103510.0,0.44903658]
[1737173012332,0.21360902,103520.0,103510.0,0.54564558]
[1737173012731,0.19060902,103520.0,103510.0,0.44903658]
[1737173012931,0.19181655,103520.0,103510.0,0.24619538]
[1737173013974,0.19181655,103520.0,103510.0,0.34280438]
[1737173014377,0.19181655,103520.0,103510.0,0.21317348]
[1737173015202,0.19060902,103520.0,103510.0,0.21317348]
[1737173015529,0.19060902,103520.0,103510.0,0.1830296]
[1737173016160,0.04700501,103520.0,103510.0,0.28323645]
[1737173016328,0.04700501,103520.0,103510.0,0.31239152]
[1737173016738,0.04700501,103520.0,103510.0,0.22597092]
[1737173017665,0.07000501,103520.0,103510.0,0.22597092]
[1737173017879,0.07000501,103520.0,103510.0,0.44202242]
[1737173018030,0.11701002,103520.0,103510.0,0.44202242]
[1737173018630,0.21360902,103520.0,103510.0,0.44202242]
[1737173018956,0.29170902,103520.0,103510.0,0.24617261]
[1737173020028,0.29170902,103520.0,103510.0,0.11654171]
[1737173020839,0.29170902,103520.0,103510.0,0.11696971]
[1737173020977,0.29260783,103520.0,103510.0,0.11696971]
[1737173021876,0.29260783,103520.0,103510.0,0.1834576]
[1737173022076,0.29260783,103520.0,103510.0,0.097037]
[1737173022280,0.29260783,103520.0,103510.0,0.15715358]
[1737173022482,0.29260783,103520.0,103510.0,0.127037]
[1737173022681,0.29260783,103520.0,103510.0,0.15715209]
[1737173023352,0.24560282,103520.0,103510.0,0.15715209]
[1737173023802,0.16750282,103520.0,103510.0,0.15715209]
[1737173024191,0.21450783,103520.0,103510.0,0.24357269]
[1737173024592,0.07090382,103520.0,103510.0,0.3428135]
[1737173026169,0.07090382,103520.0,103510.0,0.4724444]
[1737173027258,0.07090382,103520.0,103510.0,0.3428135]
[1737173027478,0.02389881,103520.0,103510.0,0.3428135]
[1737173027595,0.02389881,103520.0,103510.0,0.6250135]
[1737173028418,0.02389881,103520.0,103510.0,1.14349124]
[1737173028619,0.023609,103520.0,103510.0,1.14349124]
[1737173028958,0.07061401,103520.0,103510.0,1.14349124]
[1737173029384,0.07061401,103520.0,103510.0,1.15299432]
[1737173029576,0.07061401,103520.0,103510.0,1.06657372]
[1737173029786,0.023609,103520.0,103510.0,1.06657372]
[1737173029931,0.07061401,103520.0,103510.0,1.06657372]
[1737173030374,0.023609,103520.0,103510.0,1.06657372]
[1737173030549,0.07061401,103520.0,103510.0,1.06657372]
[1737173031339,0.07061401,103520.0,103510.0,1.15330887]
[1737173032160,0.023609,103520.0,103510.0,1.15330887]
[1737173032368,0.07061401,103520.0,103510.0,1.15330887]
[1737173032546,0.07061401,103520.0,103510.0,0.93730323]
[1737173033350,0.07061401,103520.0,103510.0,1.15330887]
[1737173033815,0.07061401,103520.0,103510.0,1.02110887]
[1737173034740,0.07061401,103520.0,103510.0,0.87110887]
[1737173035237,0.21421802,103520.0,103510.0,0.86160579]
[1737173035441,0.21421802,103520.0,103510.0,0.47275895]
[1737173035983,0.21421802,103520.0,103510.0,0.27690914]
[1737173036223,0.28991802,103520.0,103510.0,0.27690914]
[1737173036417,0.28991802,103520.0,103510.0,0.24679405]
[1737173036720,0.28991802,103520.0,103510.0,0.14728637]
[1737173037346,0.28991802,103520.0,103510.0,0.11716315]
[1737173037812,0.28991802,103520.0,103510.0,0.030428]
[1737173038220,0.28991802,103520.0,103510.0,0.000428]
[1737173039400,0.29146464,103520.0,103510.0,0.000428]
[1737173039970,0.38702128,103520.0,103510.0,0.000428]
[1737173040310,0.39684732,103520.0,103510.0,0.000428]
[1737173041769,0.44534732,103520.0,103510.0,0.000428]
[1737173042745,0.64458813,103520.0,103510.0,0.000428]
[1737173042945,0.79458813,103520.0,103510.0,0.000428]
[1737173043858,0.79502671,103520.0,103510.0,0.00344609]
[1737173044381,1.00806229,103520.0,103510.0,0.00344609]
[1737173044588,0.096627,103490.0,103480.0,0.0004276]
[1737173044796,0.34219117,103490.0,103480.0,0.0004276]
[1737173044997,0.34098364,103490.0,103480.0,0.0004276]
[1737173045430,0.49098364,103490.0,103480.0,0.0004276]
[1737173045852,0.26860732,103490.0,103480.0,0.0970646]
[1737173046064,0.09560732,103490.0,103480.0,0.27280541]
[1737173046439,0.11860732,103490.0,103480.0,0.27280541]
[1737173049587,0.02305068,103490.0,103480.0,0.27280541]
[1737173049777,0.02305068,103490.0,103480.0,0.32087712]
[1737173050918,5.068e-05,103490.0,103480.0,0.32087712]
[1737173051287,5.068e-05,103490.0,103480.0,0.35091338]
[1737173052459,5.068e-05,103490.0,103480.0,0.50081338]
[1737173053102,5.068e-05,103490.0,103480.0,0.75081338]
[1737173053304,5.068e-05,103490.0,103480.0,0.83754853]
[1737173054034,5.068e-05,103490.0,103480.0,0.93310517]
[1737173054241,5.068e-05,103490.0,103480.0,1.89527586]
[1737173054627,5.068e-05,103490.0,103480.0,1.76102086]
[1737173055265,0.00133739,103520.0,103510.0,0.224209]
[1737173055470,0.00138812,103520.0,103510.0,0.40155778]
[1737173055617,0.02438812,103520.0,103510.0,0.40155778]
[1737173056487,0.02438812,103520.0,103510.0,0.48807248]
[1737173057118,0.00138812,103520.0,103510.0,0.48807248]
[1737173057992,0.00138812,103520.0,103510.0,0.49451248]
[1737173059559,0.00138812,103520.0,103510.0,0.62428454]
[1737173060769,0.00138812,103520.0,103510.0,0.5842103]
[1737173060987,0.00138812,103520.0,103510.0,0.5000703]
[1737173061193,0.00138812,103520.0,103510.0,0.47003404]
[1737173062826,0.00138812,103520.0,103510.0,0.25374728]
[1737173063786,0.11994476,103520.0,103510.0,0.25374728]
[1737173063987,0.26354376,103520.0,103510.0,0.19584981]
[1737173065263,0.16694476,103520.0,103510.0,0.19584981]
[1737173065839,0.07138812,103520.0,103510.0,0.19584981]
[1737173066868,0.02438812,103520.0,103510.0,0.1968158]
[1737173067216,0.02438812,103520.0,103510.0,0.19681576]
[1737173067423,0.02438812,103520.0,103510.0,0.19681571]
[1737173067628,0.02438812,103520.0,103510.0,0.19584981]
[1737173067831,0.02438812,103520.0,103510.0,0.24488743]
[1737173068091,0.02438812,103520.0,103510.0,0.24392152]
[1737173068508,0.00138812,103520.0,103510.0,0.24392152]
[1737173069164,0.00138812,103520.0,103510.0,0.27392595]
[1737173069318,0.00138812,103520.0,103510.0,0.31992595]
[1737173069524,0.00138812,103520.0,103510.0,0.31992313]
[1737173069725,0.00138812,103520.0,103510.0,0.50032313]
[1737173070066,0.00138812,103520.0,103510.0,0.65032313]
[1737173071616,0.00138812,103520.0,103510.0,0.73683783]
[1737173074517,0.00094954,103520.0,103510.0,0.73683783]
[1737173075142,0.00094954,103520.0,103510.0,0.93239447]
[1737173075961,0.00089881,103540.0,103530.0,0.09659]
[1737173076203,0.00099679,103540.0,103530.0,0.2448682]
[1737173076314,0.00099679,103540.0,103530.0,0.24390252]
[1737173077543,0.00099679,103540.0,103530.0,0.39390252]
[1737173078582,0.00099679,103540.0,103530.0,0.40034252]
[1737173080721,0.00099679,103540.0,103530.0,0.68074252]
[1737173080933,0.00099679,103540.0,103530.0,0.82229916]
[1737173081134,0.00099679,103540.0,103530.0,0.75673677]
[1737173082582,0.00099679,103540.0,103530.0,0.76655182]
[1737173082983,0.075,103560.0,103550.0,0.246571]
[1737173083183,0.075,103560.0,103550.0,0.39388352]
[1737173084630,0.098,103560.0,103550.0,0.39388352]
[1737173084831,0.19355664,103560.0,103550.0,0.39388352]
[1737173085229,0.19355664,103560.0,103550.0,0.24388352]
[1737173085435,0.098,103560.0,103550.0,0.24388352]
[1737173086018,0.12289733,103570.0,103560.0,0.096562]
[1737173086287,0.07589733,103570.0,103560.0,0.19676825]
[1737173087010,0.00089733,103570.0,103560.0,0.19676825]
[1737173087144,0.00089733,103570.0,103560.0,0.22678142]
[1737173087362,0.00089733,103570.0,103560.0,0.22581598]
[1737173087995,0.00089733,103570.0,103560.0,0.19580281]
[1737173088200,0.00089733,103570.0,103560.0,0.2267802]
[1737173088404,0.00089733,103570.0,103560.0,0.22581478]
[1737173088773,0.19485397,103570.0,103560.0,0.22581478]
[1737173088972,0.19485397,103570.0,103560.0,0.19580281]
[1737173090477,0.29140697,103570.0,103560.0,0.19580281]
[1737173090683,0.19485397,103570.0,103560.0,0.19580281]
[1737173091399,0.29140697,103570.0,103560.0,0.19580281]
[1737173091618,0.19485397,103570.0,103560.0,0.19580281]
[1737173093917,0.09929733,103570.0,103560.0,0.19580281]
[1737173094127,0.09929733,103570.0,103560.0,0.19676832]
[1737173094382,0.09929733,103570.0,103560.0,0.19580281]
[1737173095869,3.09929733,103570.0,103560.0,0.19580281]
[1737173099479,3.00089733,103570.0,103560.0,0.19580281]
[1737173099741,3.00089733,103570.0,103560.0,0.22579037]
[1737173100100,3.00089733,103570.0,103560.0,0.19580281]
[1737173100326,3.00089733,103570.0,103560.0,0.30589029]
[1737173102642,3.00089733,103570.0,103560.0,0.37579029]
[1737173103883,2.99589733,103570.0,103560.0,0.37579029]
[1737173104305,2.99089733,103570.0,103560.0,0.37535171]
[1737173105207,2.99132523,103570.0,103560.0,0.37535171]
[1737173108970,2.99132523,103570.0,103560.0,0.47535171]
[1737173109620,2.99132523,103570.0,103560.0,0.48175171]
[1737173109823,3.01432523,103570.0,103560.0,0.38175171]
[1737173110476,3.13922523,103570.0,103560.0,0.37535171]
[1737173110697,3.33133487,103570.0,103560.0,0.34536423]
[1737173110900,0.1008,103560.0,103550.0,0.38600223]
[1737173111104,0.1008,103560.0,103550.0,0.51529644]
[1737173111320,0.19635664,103560.0,103550.0,0.42878174]
[1737173111537,0.29291864,103560.0,103550.0,0.25585921]
[1737173111740,0.197362,103560.0,103550.0,0.19580581]
[1737173111963,0.1008,103560.0,103550.0,0.19580581]
[1737173112167,0.29291864,103560.0,103550.0,0.19580581]
[1737173112383,0.24345664,103560.0,103550.0,0.19580581]
[1737173112591,0.1479,103560.0,103550.0,0.19580581]
[1737173116207,0.1479,103560.0,103550.0,0.22588844]
[1737173116379,0.1479,103560.0,103550.0,0.19580581]
[1737173116595,0.1479,103560.0,103550.0,0.22589046]
[1737173117049,0.1479,103560.0,103550.0,0.19580581]
[1737173120286,0.1479,103560.0,103550.0,0.19677143]
[1737173120503,0.1479,103560.0,103550.0,0.22588251]
[1737173120911,0.1479,103560.0,103550.0,0.27395422]
[1737173121113,0.0772279,103570.0,103560.0,0.096562]
[1737173121317,0.0772279,103570.0,103560.0,0.19580281]
[1737173121518,0.1002279,103570.0,103560.0,0.19580281]
[1737173121722,0.1002279,103570.0,103560.0,0.22587654]
[1737173127823,0.1002279,103570.0,103560.0,0.25587654]
[1737173128028,0.1002279,103570.0,103560.0,0.34239124]
[1737173129144,0.1002279,103570.0,103560.0,0.25587654]
[1737173129346,0.1002279,103570.0,103560.0,0.26541116]
[1737173129748,0.1002279,103570.0,103560.0,0.23541116]
[1737173130391,0.1002279,103570.0,103560.0,0.45169792]
[1737173131220,0.1002279,103570.0,103560.0,0.23541116]
[1737173132547,0.29354448,103570.0,103560.0,0.22587654]
[1737173132694,0.1042,103560.0,103550.0,0.94426603]
[1737173132910,0.34221864,103560.0,103550.0,0.63657724]
[1737173133457,0.34221864,103560.0,103550.0,0.60650132]
[1737173134530,0.34221864,103560.0,103550.0,0.00089838]
[1737173135100,0.1501,103560.0,103550.0,0.19671019]
[1737173135328,0.24786907,103560.0,103550.0,0.19671019]
[1737173135528,0.246662,103560.0,103550.0,0.19671019]
[1737173135953,0.34221864,103560.0,103550.0,0.19671019]
[1737173136118,0.34221864,103560.0,103550.0,0.00089838]
[1737173137102,0.1501,103560.0,103550.0,0.19671019]
[1737173137299,0.24786907,103560.0,103550.0,0.19671019]
[1737173137499,0.246662,103560.0,103550.0,0.19671019]
[1737173137913,0.1271,103560.0,103550.0,0.2447819]
[1737173138082,0.0812,103560.0,103550.0,0.274848]
[1737173138289,0.22308454,103570.0,103560.0,0.096562]
[1737173138498,0.2470809,103570.0,103560.0,0.096562]
[1737173139312,0.1505279,103570.0,103560.0,0.096562]
[1737173140526,0.2470809,103570.0,103560.0,0.096562]
[1737173141542,0.1046279,103570.0,103560.0,0.22587515]
[1737173141881,0.0234279,103570.0,103560.0,0.22587515]
[1737173143763,0.0004279,103570.0,103560.0,0.69303179]
[1737173143959,0.0004279,103570.0,103560.0,0.79303179]
[1737173144184,0.0004279,103570.0,103560.0,0.59747515]
[1737173144344,0.0004279,103570.0,103560.0,0.69747515]
[1737173144555,0.0004279,103570.0,103560.0,0.49747515]
[1737173145072,0.0004279,103570.0,103560.0,0.50387515]
[1737173145274,0.0004279,103570.0,103560.0,0.60387515]
[1737173145825,0.0004279,103570.0,103560.0,0.86111816]
[1737173146659,0.0004279,103570.0,103560.0,1.07749326]
[1737173146844,0.0004279,103570.0,103560.0,0.97749326]
[1737173147040,0.0004279,103570.0,103560.0,1.07749326]
[1737173147247,0.0004279,103570.0,103560.0,0.97749326]
[1737173147486,0.0004279,103570.0,103560.0,0.99956116]
[1737173148312,0.00057486,103570.0,103560.0,0.99956116]
[1737173148481,0.00050727,103570.0,103560.0,1.08609548]
[1737173148969,0.00050727,103570.0,103560.0,0.98609548]
[1737173151219,0.00050727,103570.0,103560.0,1.30535212]
[1737173151569,0.00050727,103570.0,103560.0,1.20979548]
[1737173152427,0.00050727,103570.0,103560.0,1.21069407]
[1737173152857,0.00050727,103570.0,103560.0,0.99434975]
[1737173154278,0.00050727,103570.0,103560.0,0.94704975]
[1737173154900,0.00050727,103570.0,103560.0,1.17234172]
[1737173155100,0.0234272,103580.0,103570.0,0.10352573]
[1737173155303,0.0234272,103580.0,103570.0,0.43187591]
[1737173155477,0.0234272,103580.0,103570.0,0.43091059]
[1737173156286,0.0234272,103580.0,103570.0,0.51738623]
[1737173157516,0.0234272,103580.0,103570.0,0.43091059]
[1737173161854,0.24648384,103580.0,103570.0,0.28091059]
[1737173162061,0.24648384,103580.0,103570.0,0.10352573]
[1737173162223,0.24648384,103580.0,103570.0,0.09344837]
[1737173162224,0.34302684,103580.0,103570.0,0.09344837]
[1737173163512,0.34302684,103580.0,103570.0,0.00697273]
[1737173164525,0.34302684,103580.0,103570.0,0.00787153]
[1737173167174,0.2474702,103580.0,103570.0,0.10442453]
[1737173167374,0.24648384,103580.0,103570.0,0.20366534]
[1737173167584,0.1509272,103580.0,103570.0,0.20366534]
[1737173168194,0.1279272,103580.0,103570.0,0.20366534]
[1737173168616,0.1509272,103580.0,103570.0,0.20366534]
[1737173171072,0.24648384,103580.0,103570.0,0.20366534]
[1737173172444,0.34302684,103580.0,103570.0,0.20366534]
[1737173172872,0.24648384,103580.0,103570.0,0.20366534]
[1737173174385,0.34302684,103580.0,103570.0,0.20366534]
[1737173174803,0.24648384,103580.0,103570.0,0.20366534]
[1737173175982,0.1509272,103580.0,103570.0,0.20366534]
[1737173176386,0.1509272,103580.0,103570.0,0.23374206]
[1737173176788,0.2474702,103580.0,103570.0,0.20366534]
[1737173177221,0.1509272,103580.0,103570.0,0.20366534]
[1737173177409,0.1509272,103580.0,103570.0,0.23374499]
[1737173177664,0.1016272,103580.0,103570.0,0.23374499]
[1737173178175,0.0234272,103580.0,103570.0,0.2818167]
[1737173179530,0.0234272,103580.0,103570.0,0.4318167]
[1737173181008,0.11898384,103580.0,103570.0,0.4318167]
[1737173181870,0.26353368,103580.0,103570.0,0.1852637]
[1737173182075,0.34302684,103580.0,103570.0,0.00787153]
[1737173184075,0.34302684,103580.0,103570.0,0.10442453]
[1737173184451,0.34302684,103580.0,103570.0,0.00787153]
[1737173189251,0.33336804,103580.0,103570.0,0.00787153]
[1737173208750,0.33336804,103580.0,103570.0,0.10442453]
[1737173210131,0.33336804,103580.0,103570.0,0.00787153]
[1737173210586,0.28656804,103580.0,103570.0,0.13452852]
[1737173210809,0.19002504,103580.0,103570.0,0.10442453]
[1737173211042,0.0234272,103580.0,103570.0,0.23376893]
[1737173211255,0.0004272,103580.0,103570.0,0.23376893]
[1737173211979,0.10932504,103580.0,103570.0,0.23376893]
[1737173215865,0.10932504,103580.0,103570.0,0.24359116]
[1737173217574,0.10932504,103580.0,103570.0,0.3300668]
[1737173218090,0.0234272,103580.0,103570.0,0.3300668]
[1737173218509,0.0234272,103580.0,103570.0,0.24359116]
[1737173218637,0.0004272,103580.0,103570.0,0.52359116]
[1737173219642,0.0234272,103580.0,103570.0,0.91288213]
[1737173219887,0.0004272,103580.0,103570.0,0.94288213]
[1737173221210,0.0004272,103580.0,103570.0,1.15925723]
[1737173222338,0.0004272,103580.0,103570.0,0.94288213]
[1737173230313,0.0004272,103580.0,103570.0,0.76980213]
[1737173231423,0.0004272,103580.0,103570.0,0.77616213]
[1737173232743,0.0004272,103580.0,103570.0,0.72706213]
[1737173233031,0.0004272,103580.0,103570.0,0.63980213]
[1737173233237,0.0004272,103580.0,103570.0,0.48980213]
[1737173233238,0.10927654,103580.0,103570.0,0.48980213]
[1737173233437,0.19167654,103580.0,103570.0,0.48980213]
[1737173233567,0.19167654,103580.0,103570.0,0.39056132]
[1737173234811,0.19288342,103580.0,103570.0,0.17435035]
[1737173235011,0.19170233,103580.0,103570.0,0.17435035]
[1737173235182,0.1058272,103580.0,103570.0,0.17435035]
[1737173235397,0.2023702,103580.0,103570.0,0.17435035]
[1737173235974,0.0234272,103580.0,103570.0,0.27455666]
[1737173236180,0.0234272,103580.0,103570.0,0.27359116]
[1737173240175,0.0234272,103580.0,103570.0,0.42359116]
[1737173241847,0.18460233,103580.0,103570.0,0.32703816]
[1737173242273,0.18460233,103580.0,103570.0,0.17703816]
[1737173243267,0.33035215,103580.0,103570.0,0.03787153]
[1737173243397,0.32914533,103580.0,103570.0,0.03787153]
[1737173244131,0.23260233,103580.0,103570.0,0.03787153]
[1737173244308,0.32914533,103580.0,103570.0,0.03787153]
[1737173244689,0.23260233,103580.0,103570.0,0.03787153]
[1737173245949,0.23260233,103580.0,103570.0,0.06676338]
[1737173246142,0.23260233,103580.0,103570.0,0.03676338]
[1737173247721,0.32914533,103580.0,103570.0,0.03676338]
[1737173247871,0.23260233,103580.0,103570.0,0.03676338]
[1737173249868,0.32914533,103580.0,103570.0,0.03676338]
[1737173250081,0.23260233,103580.0,103570.0,0.03676338]
[1737173250723,0.23260233,103580.0,103570.0,0.00787153]
[1737173253463,0.32914533,103580.0,103570.0,0.00787153]
[1737173254376,0.23260233,103580.0,103570.0,0.00787153]
[1737173255004,0.32914533,103580.0,103570.0,0.00787153]
[1737173258287,0.23260233,103580.0,103570.0,0.00787153]
[1737173258475,0.32914533,103580.0,103570.0,0.00787153]
[1737173259883,0.119553,103570.0,103560.0,0.00089859]
[1737173260063,0.41941042,103570.0,103560.0,0.00089859]
[1737173260415,0.41820326,103570.0,103560.0,0.00089859]
[1737173262332,0.33232813,103570.0,103560.0,0.00089859]
[1737173263166,0.23577513,103570.0,103560.0,0.09746059]
[1737173263448,0.33232813,103570.0,103560.0,0.00089859]
[1737173264350,0.23577513,103570.0,103560.0,0.00089859]
[1737173266842,0.16597513,103570.0,103560.0,0.09746059]
[1737173267026,0.08587513,103570.0,103560.0,0.09746059]
[1737173267611,0.10887513,103570.0,103560.0,0.09746059]
[1737173268386,0.2773272,103580.0,103570.0,0.096553]
[1737173268586,0.023,103570.0,103560.0,0.29056159]
[1737173268813,0.11008212,103570.0,103560.0,0.29056159]
[1737173269700,0.10887513,103570.0,103560.0,0.29056159]
[1737173270194,0.10887513,103570.0,103560.0,0.3206401]
[1737173270772,0.023,103570.0,103560.0,0.3206401]
[1737173271004,0.023,103570.0,103560.0,0.41988091]
[1737173271509,0.023,103570.0,103560.0,0.46568091]
[1737173272784,0.023,103570.0,103560.0,0.54868091]
[1737173275349,0.0234272,103580.0,103570.0,0.096553]
[1737173275678,0.0234272,103580.0,103570.0,0.22587232]
[1737173277137,0.0004272,103580.0,103570.0,0.27394403]
[1737173277337,0.0004272,103580.0,103570.0,0.35694403]
[1737173278473,0.0004272,103580.0,103570.0,0.55274403]
[1737173279937,0.0004272,103580.0,103570.0,0.63921967]
[1737173282322,0.0004272,103580.0,103570.0,0.51041967]
[1737173282528,0.10930233,103580.0,103570.0,0.36041967]
[1737173282937,0.10930233,103580.0,103570.0,0.51041967]
[1737173283146,0.18670233,103580.0,103570.0,0.36041967]
[1737173283358,0.0234272,103580.0,103570.0,0.54854403]
[1737173290267,0.0234272,103580.0,103570.0,0.764755]
[1737173291860,0.0234272,103580.0,103570.0,0.85063013]
[1737173292052,0.0234272,103580.0,103570.0,0.764755]
[1737173292487,0.0234272,103580.0,103570.0,0.63501967]
[1737173293751,0.0234272,103580.0,103570.0,0.764755]
[1737173294092,0.0234272,103580.0,103570.0,0.85063013]
[1737173294745,0.0234272,103580.0,103570.0,0.764755]
[1737173295841,0.0234272,103580.0,103570.0,0.771115]
[1737173298947,0.0234272,103580.0,103570.0,0.64137967]
[1737173301274,0.0234272,103580.0,103570.0,0.64227847]
[1737173301590,0.0234272,103580.0,103570.0,0.59577847]
[1737173301730,0.0234272,103580.0,103570.0,0.51767847]
[1737173301731,0.1051272,103580.0,103570.0,0.51767847]
[1737173301941,0.0234272,103580.0,103570.0,0.51767847]
[1737173305240,0.0234272,103580.0,103570.0,0.59347847]
[1737173305615,0.0234272,103580.0,103570.0,0.54540676]
[1737173306029,0.0234272,103580.0,103570.0,0.84822209]
[1737173306842,0.000827,103590.0,103580.0,0.246543]
[1737173307020,0.000827,103590.0,103580.0,0.42393403]
[1737173308884,0.000827,103590.0,103580.0,0.43029403]
[1737173309764,0.000827,103590.0,103580.0,0.48019403]
[1737173310889,0.000827,103590.0,103580.0,1.0858601]
[1737173311244,0.000827,103590.0,103580.0,1.27173523]
[1737173311470,0.000827,103590.0,103580.0,1.34753523]
[1737173311674,0.000827,103590.0,103580.0,1.2616601]
[1737173312407,0.000827,103590.0,103580.0,1.045285]
[1737173313192,0.000827,103590.0,103580.0,1.13116013]
[1737173313555,0.000827,103590.0,103580.0,1.26105959]
[1737173314197,0.000827,103590.0,103580.0,1.27045313]
[1737173314392,0.000827,103590.0,103580.0,1.56007313]
[1737173315225,0.000827,103590.0,103580.0,1.4303378]
[1737173316060,0.000827,103590.0,103580.0,1.34446267]
[1737173317685,0.000827,103590.0,103580.0,1.4303378]
[1737173317834,0.000827,103590.0,103580.0,1.5496352]
[1737173318575,0.000827,103590.0,103580.0,1.58024649]
[1737173319492,0.000427,103600.0,103590.0,0.096534]
[1737173319651,0.000427,103600.0,103590.0,1.05917837]
[1737173319857,0.000427,103600.0,103590.0,1.05821332]
[1737173320612,1e-06,103600.0,103590.0,1.44766842]
[1737173323278,1e-06,103600.0,103590.0,1.48624742]
[1737173324103,1e-06,103600.0,103590.0,1.40037229]
[1737173324489,1e-06,103600.0,103590.0,1.48624742]
[1737173325171,0.00089943,103610.0,103600.0,0.096525]
[1737173325373,0.21558168,103610.0,103600.0,0.27391603]
[1737173325596,0.21558168,103610.0,103600.0,0.71981603]
[1737173325801,0.12970655,103610.0,103600.0,0.71349603]
[1737173326012,0.12970655,103610.0,103600.0,0.71981603]
[1737173326428,0.12970655,103610.0,103600.0,0.75337645]
[1737173326742,0.12970655,103610.0,103600.0,0.74705645]
[1737173326946,0.12970655,103610.0,103600.0,0.75337645]
[1737173327145,0.12970655,103610.0,103600.0,0.71981603]
[1737173327829,0.12970655,103610.0,103600.0,0.93595856]
[1737173328716,0.12970655,103610.0,103600.0,0.80627304]
[1737173329913,0.23858168,103610.0,103600.0,0.80627304]
[1737173330318,0.23858168,103610.0,103600.0,0.79995304]
[1737173330956,0.23858168,103610.0,103600.0,0.71349603]
[1737173331674,0.23858168,103610.0,103600.0,0.56349603]